Cogmind - Beta 15 @@@ ROGUE MODE // 2025.07.09 @ 16:11:44 Player: Dingot Result: Self-destructed Performance ------------- Evolutions (2) 1000 Regions Visited (3) 600 Robots Destroyed (16) 80 Value Destroyed (307) 307 Prototype IDs (0) 0 Alien Tech Used (0) 0 Bonus (0) 0 TOTAL SCORE: 1987 Bonus ------- None Cogmind --------- Core Integrity 550/550 Matter 260/300 Energy 41/100 System Corruption 0% Temperature Cool (0) Movement Treading (160) Location -8/Materials Parts ------- > --- POWER (1) -------- (None) > --- PROPULSION (4) --- Light Treads Light Treads Light Treads Spiked Treads > --- UTILITY (4) ------ Small Storage Unit Propulsion Shielding Tractor Beam > --- WEAPON (2) ------- Light Assault Rifle Grenade Launcher > --- INVENTORY (8) ---- Piercing Trap Scrap Shield Fragment (34) Peak State ------------ > --- POWER ------------ (None) > --- PROPULSION ------- Light Treads Light Treads Light Treads Spiked Treads > --- UTILITY ---------- Small Storage Unit Propulsion Shielding Tractor Beam > --- WEAPON ----------- Light Assault Rifle Grenade Launcher > --- INVENTORY -------- Piercing Trap Scrap Shield Fragment [Rating: 10] Favorites ----------- Power Subdweller Power Source Engine Subdweller Power Source Propulsion Light Treads Treads Light Treads Utility Small Storage Unit Device Tractor Beam Storage Small Storage Unit Protection Propulsion Shielding Weapon Grenade Launcher Energy Gun EM Pulse Gun Ballistic Gun Light Assault Rifle Launcher Grenade Launcher Build | -11 -10 -10 -8 ------- Run | Yrd Mat Sub Mat Slots Evolved 4 | . . . 4 Power . | . . . . Propulsion 2 | . . . 2 Utility 2 | . . . 2 Weapon . | . . . . Parts Attached 12 | 6 2 1 3 Power 2 | 1 . 1 . Engine 2 | 1 . 1 . Core . | . . . . Reactor . | . . . . Propulsion 4 | 2 . . 2 Treads 4 | 2 . . 2 Leg . | . . . . Wheel . | . . . . Hover . | . . . . Flight . | . . . . Utility 3 | 1 1 . 1 Device 1 | . 1 . . Storage 1 | 1 . . . Processor . | . . . . Hackware . | . . . . Protection 1 | . . . 1 Artifact . | . . . . Weapon 3 | 2 1 . . Energy Gun 1 | 1 . . . Energy Cannon . | . . . . Ballistic Gun 1 | 1 . . . Ballistic Cannon . | . . . . Launcher 1 | . 1 . . Special Weapon . | . . . . Impact Weapon . | . . . . Slashing Weapon . | . . . . Piercing Weapon . | . . . . Special Melee Weapon . | . . . . Unidentified Prototypes . | . . . . Parts Lost 3 | . 1 2 . Power 2 | . 1 1 . Propulsion . | . . . . Utility . | . . . . Weapon 1 | . . 1 . Highest Loss Streak 1 | . 1 1 . To Critical Strikes . | . . . . Average Backups 3 | . 2 3 3 Power . | . . . . Propulsion 1 | . . 1 1 Utility . | . . 1 1 Weapon . | . . 1 1 Tool/Special . | . . . . Unused Backups . | . . . . Power . | . . . . Propulsion . | . . . . Utility . | . . . . Weapon . | . . . . Tool/Special . | . . . . Average Slot Usage (%) 90 | . 96 89 67 Engine 11 | . 12 12 . Treads 28 | . 28 28 31 Device 13 | . 12 14 9 Storage 13 | . 14 14 9 Energy Gun 7 | . 14 6 . Launcher 13 | . 12 14 9 Peak Build Rating 10 | 6 7 8 10 Average Rating 6 | 3 6 7 9 On Entrance 4 | . 6 6 5 Naked Turns . | . . . . Heaviest Build 16 | 11 14 16 11 Greatest Support 80 | 40 40 40 80 Greatest Overweight (x) . | . . . . Average Overweight (x) . | . . . . Largest Inventory Capacity 8 | 8 8 8 8 Average Capacity 7 | 6 8 8 8 Most Carried 6 | 3 3 6 5 Average Carried 4 | . 2 5 2 Final Capacity 8 | 8 8 8 8 Final Carried 6 | . 3 6 2 Class Distribution -------------------- 100% | Mutant Dominant Class ---------------- Mutant | -10/Materials Mutant | -10/Subcaves Mutant | -8/Materials Resources | -11 -10 -10 -8 ----------- Run | Yrd Mat Sub Mat Matter Collected 435 | 205 108 122 . Remotely 230 | . 108 122 . Salvage Created 240 | . 149 91 . Parts 33 | . 23 10 . Haulers Intercepted . | . . . . Recyclers Shooed 1 | . 1 . . Parts Field Recycled . | . . . . Retrieved Matter . | . . . . Parts Self-Destructed 8 | . . 8 . Prevented . | . . . . Kills | -11 -10 -10 -8 ------- Run | Yrd Mat Sub Mat Combat Hostiles Destroyed 11 | . 6 5 . Guns 2 | . 2 . . AOE 9 | . 4 5 . Classes Destroyed 6 | . 5 1 . Worker 1 | . 1 . . Builder 3 | . 3 . . Watcher 1 | . 1 . . Swarmer 6 | . 3 3 . Grunt 3 | . 3 . . Subdweller 2 | . . 2 . Best Kill Streak 7 | . 7 3 . Combat Bots Only 3 | . 3 3 . Max Kills in Single Turn 3 | . 3 3 . Gunslinging . | . . . . Exploded 3 | . 1 3 . Melee . | . . . . Uniques/NPCs Destroyed . | . . . . Combat | -11 -10 -10 -8 -------- Run | Yrd Mat Sub Mat Hostile Shots Fired 62 | . 22 40 . Missed 21 | . 5 16 . Hits 41 | . 17 24 . Projectile 41 | . 17 24 . Damage Taken 391 | . 217 174 . Core 72 | . 57 15 . Absorbed by Shields . | . . . . Core Remaining (%) 85 | 100 . 71 . Volleys Fired 19 | . 13 6 . Largest 2 | . 2 2 . Hottest 70 | . 70 70 . Shots Fired 33 | . 22 11 . Gun 18 | . 13 5 . Cannon . | . . . . Launcher 15 | . 9 6 . Special . | . . . . Kinetic . | . . . . Thermal . | . . . . Explosive 15 | . 9 6 . Electromagnetic 18 | . 13 5 . Robot Hit Streak 11 | . 9 11 . Robot Miss Streak 3 | . 3 1 . Penetration Max . | . . . . Secondary Targets . | . . . . Shots Hit Robots 21 | . 12 9 . Core Hits 19 | . 14 5 . Critical Kills . | . . . . Critical Parts Destroyed . | . . . . Critical Strikes . | . . . . Melee Attacks . | . . . . Impact . | . . . . Slashing . | . . . . Piercing . | . . . . Sneak Attacks . | . . . . Combat Hostiles . | . . . . Follow-up Attacks . | . . . . Damage Inflicted 1026 | . 615 411 . Guns 145 | . 109 36 . Cannons . | . . . . Explosions 881 | . 506 375 . Melee . | . . . . Ramming . | . . . . Kinetic . | . . . . Thermal 48 | . 48 . . Explosive 833 | . 458 375 . Electromagnetic 145 | . 109 36 . Impact . | . . . . Slashing . | . . . . Piercing . | . . . . Highest Corruption . | . . . . Average Corruption . | . . . . Corruption Purged . | . . . . Corruption Blocked . | . . . . Overload Shots . | . . . . Overflow Damage 53 | . 32 21 . Projectiles . | . . . . Explosions 53 | . 32 21 . Melee . | . . . . Knockbacks . | . . . . Impact . | . . . . Kinetic . | . . . . Secondary . | . . . . Self-Inflicted Damage 55 | . 55 . . Shots 2 | . 2 . . Rammed . | . . . . Targets Rammed . | . . . . Kicked . | . . . . Crushed . | . . . . Highest Temperature 60 | . 60 . . Average Temperature 28 | . 28 . . Received Heat Transfer 141 | . 57 84 . Siege Activations . | . . . . Martial Activations . | . . . . Shielding Activations . | . . . . Robots Disrupted . | . . . . Combat Hostiles . | . . . . Robots Corrupted . | . . . . Combat Hostiles . | . . . . Parts Fried . | . . . . Impact Corruptions . | . . . . Robots Melted . | . . . . Combat Hostiles . | . . . . Parts Melted . | . . . . Heat Transferred 50 | . 50 . . Parts Sabotaged . | . . . . Parts Stolen . | . . . . Parts Stripped . | . . . . Power Chain Reactions 1 | . 1 . . Alert | -11 -10 -10 -8 ------- Run | Yrd Mat Sub Mat Maximum Alert Level . | . . . . Low Security (%) 100 | 100 100 . 100 Level 1 . | . . . . Level 2 . | . . . . Level 3 . | . . . . Level 4 . | . . . . Level 5 . | . . . . High Security . | . . . . Max Security . | . . . . Peak Influence 182 | . 182 . . Initial . | . . . . Average 40 | . 55 . . Influence Increases 365 | . 260 105 . Destroy 0b10 Robot/C 180 | . 120 60 . Destroy 0b10 Robot/NC 25 | . 25 . . Destroy Leader 32 | . 32 . . Successful Hack 5 | . 5 . . Disable Machine 30 | . 30 . . Destroy Structure 48 | . 48 . . Lose Combat Pursuer 45 | . . 45 . Influence Decreases 365 | . 88 277 . Entered New Map 84 | . . 84 . Time Decay 271 | . 78 193 . Lost Part 10 | . 10 . . Squads Dispatched 1 | . 1 . . Investigation 1 | . 1 . . Extermination . | . . . . Reinforcement . | . . . . Assault . | . . . . Garrison . | . . . . Intercept . | . . . . Searches Triggered . | . . . . Construction Impeded . | . . . . Haulers Reinforced . | . . . . Active Scanning Responses . | . . . . Cargo Convoy Interrupts . | . . . . Stealth | -11 -10 -10 -8 --------- Run | Yrd Mat Sub Mat Distress Signals . | . . . . Communications Jammed . | . . . . Distress Signals . | . . . . Times Spotted 16 | . 6 10 . Peak Tracking Total 6 | . 3 6 . Tactical Retreats 1 | . . 1 . Traps | -11 -10 -10 -8 ------- Run | Yrd Mat Sub Mat Traps Triggered 1 | . 1 . . Indirectly . | . . . . Trap Hack Attempts . | . . . . Triggered . | . . . . Disarmed . | . . . . Reprogrammed . | . . . . Reused . | . . . . Traps Extracted . | . . . . Installed . | . . . . Triggered . | . . . . Most Traps Carried 1 | . . 1 1 Machines | -11 -10 -10 -8 ---------- Run | Yrd Mat Sub Mat Machines Disabled 2 | . 2 . . Max in Single Turn 1 | . 1 . . Machines Repaired . | . . . . Machines Dismantled . | . . . . Machines Sabotaged . | . . . . Overloaded Fab Kills . | . . . . Hacking | -11 -10 -10 -8 --------- Run | Yrd Mat Sub Mat Machines Accessed 2 | . 2 . . Terminals 2 | . 2 . . Fabricators . | . . . . Repair Stations . | . . . . Recycling Units . | . . . . Scanalyzers . | . . . . Garrison Access . | . . . . Total Hacks 6 | . 6 . . Successful 2 | . 2 . . Failed 4 | . 4 . . Catastrophic 2 | . 2 . . Database Lockouts . | . . . . Manual 3 | . 3 . . Terminals 6 | . 6 . . Fabricators . | . . . . Repair Stations . | . . . . Recycling Units . | . . . . Scanalyzers . | . . . . Garrison Access . | . . . . Terminal Hacks 1 | . 1 . . Zone Layout 1 | . 1 . . Fabricator Hacks . | . . . . Repair Station Hacks . | . . . . Recycling Unit Hacks . | . . . . Scanalyzer . | . . . . Garrison Access Hacks . | . . . . Unauthorized Hacks 1 | . 1 . . Terminals 1 | . 1 . . Botnet 1 | . 1 . . Fabricators . | . . . . Repair Stations . | . . . . Recycling Units . | . . . . Scanalyzers . | . . . . Garrison Access . | . . . . Data Cores Recovered . | . . . . Used . | . . . . Hacking Detections 2 | . 2 . . Full Trace Events . | . . . . Feedback Events . | . . . . Feedback Blocked . | . . . . Robot Schematics Acquired . | . . . . Robots Built . | . . . . Authchips . | . . . . Time . | . . . . Total Robot Build Rating . | . . . . Part Schematics Acquired . | . . . . Parts Built . | . . . . Authchips . | . . . . Time . | . . . . Total Part Build Rating . | . . . . Parts Repaired . | . . . . Time . | . . . . Parts Recycled . | . . . . Recycled Matter . | . . . . Retrieved Matter . | . . . . Retrieved Components . | . . . . Parts Scanalyzed . | . . . . Part Schematics Acquired . | . . . . Parts Damaged . | . . . . Bothacking | -11 -10 -10 -8 ------------ Run | Yrd Mat Sub Mat Used RIF Installer . | . . . . Robots Hacked . | . . . . Non-combat . | . . . . Combat . | . . . . Robot Hacks Applied . | . . . . Relay Couplers Released . | . . . . Fabnet Peak Effective % . | . . . . Robots Rewired . | . . . . Allies Hacked . | . . . . Hacks Repelled . | . . . . Allies | -11 -10 -10 -8 -------- Run | Yrd Mat Sub Mat Total Allies . | . . . . Largest Group . | . . . . Highest-Rated Group . | . . . . Highest-Rated Ally . | . . . . Total Orders . | . . . . Ally Attacks . | . . . . Total Damage . | . . . . Kills . | . . . . Allies Corrupted . | . . . . Allies Melted . | . . . . Intel | -11 -10 -10 -8 ------- Run | Yrd Mat Sub Mat Active Infowar (turns) . | . . . . Robot Analysis Total . | . . . . Derelict Logs Recovered 1 | . . 1 . Drone Launches . | . . . . Drone Recoveries . | . . . . Exploration | -11 -10 -10 -8 ------------- Run | Yrd Mat Sub Mat Turns Passed 1151 | 79 228 835 9 Spaces Moved 676 | 47 117 509 3 Core 6 | 6 . . . Treads 670 | 41 117 509 3 Legs . | . . . . Wheels . | . . . . Hover . | . . . . Flight . | . . . . Fastest Speed 50 | 50 160 160 160 Average Speed 159 | 145 160 160 160 Slowest Speed 160 | 160 160 160 160 Overloaded Moves . | . . . . Propulsion Burnouts . | . . . . Robots Hopped . | . . . . Potential Cave-ins . | . . . . Cave-ins Triggered . | . . . . Exploration Rate (%) 13 | 4 24 24 1 Regions Visited 3 Branch Regions 1 Pre-discovered Areas . | . . . . Known Exits Taken . | . . . . Unknown Exits Taken 3 | 1 1 1 . Scrap Searched . | . . . . Spaces Dug . | . . . . Terrain Destroyed 67 | . 51 16 . Melee . | . . . . Projectile . | . . . . AOE 67 | . 51 16 . Terrain Rammed . | . . . . Walls Destroyed . | . . . . Machines Disabled . | . . . . Actions | -11 -10 -10 -8 --------- Run | Yrd Mat Sub Mat Total 719 | 58 135 519 7 Wait . | . . . . Move 673 | 46 116 508 3 Hop . | . . . . Pick Up 14 | 6 4 4 . Fast Attach . | . . . . Attach 12 | 6 1 1 4 Detach . | . . . . Swap 1 | . 1 . . Drop . | . . . . Fire 19 | . 13 6 . Melee . | . . . . Ram . | . . . . Kick . | . . . . Crush . | . . . . Escape Stasis . | . . . . Rewire . | . . . . Trap . | . . . . Miscellaneous . | . . . . Route ------- -11/Scrapyard -10/Materials (discovered 2 exits: [*Mat] / [*Sub]) -10/Subcaves -8/Materials History --------- Turn | Location | Event 3 | -11/Scrapyard | Discovered new exit (range 16) 80 | -11/Scrapyard | Entered Materials 200 | -10/Materials | Discovered new exit (range 11) 282 | -10/Materials | Discovered new exit (range 11) 307 | -10/Materials | Build established: Mutant 308 | -10/Materials | Entered Subcaves 340 | -10/Subcaves | Learned Materials security intel 1097 | -10/Subcaves | Discovered new exit (range 11) 1143 | -10/Subcaves | Entered Materials 1143 | -8/Materials | Evolved 4 slots: Propulsion x2, Utility x2 1152 | -8/Materials | Self-destructed Last Messages --------------- destroying it. Acquired 14 matter. Subatomizers dissect the Sub. Power Source. Acquired Spk. Treads. Acquired 1 matter. Acquired Piercing Trap. EM Pulse Gun destroyed. Destroyed Lgt. Ion Engine. S-10 Pest destroyed. Destroyed Lgt. Ion Engine. S-10 Pest destroyed. Acquired 10 matter. S-10 Pest destroyed. Lgt. Assault Rifle fries itself beyond repair. EXIT=FOUND Sub. Power Source destroyed. PARAMETERS=PROPULSION+2,UTILITY+2 LOCATION=UNKNOWN GOAL=ESCAPE Loading Materials security intel (x10)... Map ----- +----------------------------------------------------+ | ????????????????????????????????????????? | | ????????????????????????????????????????? | | ????????????????????????????????????????? | | ????????????????????????????????????????? | | ????????????????????????????????????????? | | ????????????????????????????????????????? | | ????????????????????????????????????????? | | ????????????????????????????????????????? | | ????????????????????????????????????????? | | ????????????????????????????????????????? | | ????????????????????????????????????????? | | ????????????????????????????????????????? | | ????????????????????????????????????????? | | ????????????????????????????????????????? | | ????????????????????????????????????????? | | ????????????????????????????????????????? | | ????????????????????????????????????????? | | ????????????????????????????????????????? | | ????????????????????????????????????????? | | ???????????????????????#????????????????? | | ?????????????????????? #????????????????? | | ????????????????????? #????????????????? | | ????????????######## #????????????????? | | ????????????# #????????????????? | | ????????????# #????????????????? | | ????????????# @ #????????????????? | | ????????????# ###+####????????????????? | | ????????????# #???????????????????????? | | ????????????# #???????????????????????? | | ????????????# #???????????????????????? | | ????????????#####???????????????????????? | | ????????????????????????????????????????? | | ????????????????????????????????????????? | | ????????????????????????????????????????? | | ????????????????????????????????????????? | | ????????????????????????????????????????? | | ????????????????????????????????????????? | | ????????????????????????????????????????? | | ????????????????????????????????????????? | | ????????????????????????????????????????? | | ????????????????????????????????????????? | | | | | | | | | | | | | | | | | | | +----------------------------------------------------+ Best States ------------- Heat Dissipation 31 Energy Generation 15 Energy Capacity 200 Matter Stores 300 Matter Capacity 300 Sight Range 16 Terrain Scan Density 10 Propulsion Shielding 33 Evasion (%) 40 Recoil Reduction 4 Item Schematics ----------------- None Robot Schematics ------------------ None Fabricated ------------ Nothing Repaired ---------- Nothing Alien Tech Used ----------------- None Achievements -------------- None Challenges ------------ None Game ------ Seed ThrowingScrapoidWarhead Manual? 0 Play Time 00:07:59 Cumulative 12.2 hours Start 2025.07.08 @ 22:53:06 End 2025.07.09 @ 16:11:44 Sessions 3 Manual Loads 0 Difficulty Rogue Special Mode None Game No. 12 Rogue 12 Adventurer 0 Explorer 0 Win Type - Total 0 Types 0/0/0/0/0/0/0/0/0/0 Lore% 10 Gallery% 14 Achievement% 16 Wizard Run 0 Options --------- Layout 1 ASCII 0 Keyboard 0 Movement Mouse Keybinds 0 Fullscreen 1 Font 24/Smallcaps Map View 50x35 Zoom Use 0% Tactical HUD 0 Map Filters NONE Filters NONE Steam 1 RUN: f27b7c3a-afec-4f85-8fd9-907ba0471b34